[Event "*** Titled Tuesday Blitz"]
[Site "Chess.com"]
[Date "2021.02.16"]
[Round "8"]
[White "Infernal_XaM"]
[Black "hansen"]
[Result "0-1"]
[WhiteElo "2813"]
[BlackElo "2931"]
[TimeControl "180+1"]
[EndTime "11:29:23 PST"]
[Termination "hansen won by resignation"]

1. d4 {[%clk 0:02:26.6]} 1... Nf6 {[%clk 0:02:58.5]} 2. c4 {[%clk 0:02:27.5]}
2... g6 {[%clk 0:02:57.1]} 3. Nc3 {[%clk 0:02:27.6]} 3... d5 {[%clk 0:02:57.7]}
4. cxd5 {[%clk 0:02:25.9]} 4... Nxd5 {[%clk 0:02:58.4]} 5. Na4 {[%clk
0:02:26.4]} 5... Bg7 {[%clk 0:02:52.6]} 6. e4 {[%clk 0:02:26]} 6... Nb6 {[%clk
0:02:53.4]} 7. Be3 {[%clk 0:02:26.2]} 7... O-O {[%clk 0:02:51]} 8. Nc5 {[%clk
0:02:25.6]} 8... N8d7 {[%clk 0:02:48.3]} 9. Nb3 {[%clk 0:02:24.3]} 9... e5
{[%clk 0:02:46]} 10. Rc1 {[%clk 0:02:21]} 10... exd4 {[%clk 0:02:45.8]} 11. Bxd4
{[%clk 0:02:20.9]} 11... Re8 {[%clk 0:02:46.5]} 12. f3 {[%clk 0:02:14]} 12...
Bh6 {[%clk 0:02:43.6]} 13. Rc3 {[%clk 0:02:10.7]} 13... Na4 {[%clk 0:02:39.5]}
14. Rd3 {[%clk 0:02:08.3]} 14... c5 {[%clk 0:02:39.7]} 15. Nxc5 {[%clk
0:01:41.7]} 15... Qa5+ {[%clk 0:02:37.5]} 16. Kf2 {[%clk 0:01:27.2]} 16... Naxc5
{[%clk 0:02:35.1]} 17. Rc3 {[%clk 0:01:26.8]} 17... Ne6 {[%clk 0:02:33.6]} 18.
Be3 {[%clk 0:01:27]} 18... Bxe3+ {[%clk 0:02:32.4]} 19. Rxe3 {[%clk 0:01:27.9]}
19... Qb6 {[%clk 0:02:32.4]} 20. Qb3 {[%clk 0:01:26]} 20... Ndc5 {[%clk
0:02:27.4]} 21. Qxb6 {[%clk 0:01:24.3]} 21... axb6 {[%clk 0:02:28.3]} 22. a3
{[%clk 0:01:24.8]} 22... Nd4 {[%clk 0:02:28.5]} 23. Bc4 {[%clk 0:01:23.9]} 23...
Be6 {[%clk 0:02:26.9]} 24. Rc3 {[%clk 0:01:22.4]} 24... Bxc4 {[%clk 0:02:21.9]}
25. Rxc4 {[%clk 0:01:22.6]} 25... Red8 {[%clk 0:02:22.5]} 26. Ke3 {[%clk
0:01:21.6]} 26... Nb5 {[%clk 0:02:19.1]} 27. Rb4 {[%clk 0:01:12.6]} 27... Rd3+
{[%clk 0:02:18.6]} 28. Kf2 {[%clk 0:01:12.9]} 28... Nd4 {[%clk 0:02:17.5]} 29.
Nh3 {[%clk 0:01:06.3]} 29... Rd8 {[%clk 0:01:55.5]} 30. Nf4 {[%clk 0:00:49.1]}
30... Rd2+ {[%clk 0:01:54.8]} 31. Kg3 {[%clk 0:00:49.5]} 31... Ne2+ {[%clk
0:01:38.5]} 32. Nxe2 {[%clk 0:00:49.5]} 32... Rxe2 {[%clk 0:01:39.4]} 33. Rxb6
{[%clk 0:00:49.3]} 33... Rdd2 {[%clk 0:01:40.1]} 34. Rg1 {[%clk 0:00:48.1]}
34... Rxb2 {[%clk 0:01:40.6]} 35. Rd6 {[%clk 0:00:48.2]} 35... Ne6 {[%clk
0:01:38.6]} 36. a4 {[%clk 0:00:45.3]} 36... g5 {[%clk 0:01:33.6]} 37. a5 {[%clk
0:00:42.4]} 37... h5 {[%clk 0:01:33.3]} 38. h4 {[%clk 0:00:41.4]} 38... g4
{[%clk 0:01:12.3]} 39. Rd7 {[%clk 0:00:32.3]} 39... Kg7 {[%clk 0:01:09]} 40. Rd5
{[%clk 0:00:30.9]} 40... Kg6 {[%clk 0:01:08.4]} 41. Rd6 {[%clk 0:00:26]} 41...
Rb3 {[%clk 0:00:53.9]} 42. a6 {[%clk 0:00:11.9]} 42... bxa6 {[%clk 0:00:51.2]}
43. Rxa6 {[%clk 0:00:12.8]} 43... Rxe4 {[%clk 0:00:50.8]} 44. Rc1 {[%clk
0:00:11.5]} 44... Ree3 {[%clk 0:00:47.7]} 45. Rc8 {[%clk 0:00:10.6]} 45... gxf3
{[%clk 0:00:47.1]} 46. gxf3 {[%clk 0:00:10.7]} 46... Rxf3+ {[%clk 0:00:47.3]}
47. Kg2 {[%clk 0:00:11.6]} 47... Rfc3 {[%clk 0:00:45.1]} 48. Rg8+ {[%clk
0:00:10.9]} 48... Kf6 {[%clk 0:00:45.1]} 0-1

[Event "*** Titled Tuesday Blitz"]
[Site "Chess.com"]
[Date "2021.02.16"]
[Round "8"]
[White "eljanov"]
[Black "GregShahade"]
[Result "1/2-1/2"]
[WhiteElo "2840"]
[BlackElo "2667"]
[TimeControl "180+1"]
[EndTime "11:29:24 PST"]
[Termination "Game drawn by repetition"]

1. e4 {[%clk 0:03:00.9]} 1... e5 {[%clk 0:03:00.2]} 2. Nf3 {[%clk 0:03:00.8]}
2... Nc6 {[%clk 0:03:00.9]} 3. Bc4 {[%clk 0:03:01.1]} 3... Nf6 {[%clk
0:03:01.3]} 4. d3 {[%clk 0:03:00.8]} 4... Bc5 {[%clk 0:03:02]} 5. c3 {[%clk
0:03:01.3]} 5... a6 {[%clk 0:03:01.3]} 6. O-O {[%clk 0:03:01.2]} 6... d6 {[%clk
0:03:00.5]} 7. Re1 {[%clk 0:03:01.6]} 7... Ba7 {[%clk 0:02:56.2]} 8. a4 {[%clk
0:03:00.7]} 8... O-O {[%clk 0:02:56.4]} 9. h3 {[%clk 0:03:01]} 9... h6 {[%clk
0:02:56.6]} 10. Nbd2 {[%clk 0:03:00.7]} 10... Re8 {[%clk 0:02:57.3]} 11. b4
{[%clk 0:03:00.8]} 11... Be6 {[%clk 0:02:57.6]} 12. Bxe6 {[%clk 0:03:01.3]}
12... Rxe6 {[%clk 0:02:58.5]} 13. Qc2 {[%clk 0:03:01.8]} 13... Qd7 {[%clk
0:02:58.2]} 14. Nf1 {[%clk 0:03:01.4]} 14... d5 {[%clk 0:02:58.8]} 15. Be3
{[%clk 0:03:00.9]} 15... Bxe3 {[%clk 0:02:59.3]} 16. Nxe3 {[%clk 0:03:00.5]}
16... Ne7 {[%clk 0:02:55.9]} 17. a5 {[%clk 0:02:56.7]} 17... Nc6 {[%clk
0:02:56.1]} 18. Rad1 {[%clk 0:02:52.1]} 18... Rae8 {[%clk 0:02:56.2]} 19. Qb1
{[%clk 0:02:41.3]} 19... Rd8 {[%clk 0:02:29.9]} 20. c4 {[%clk 0:02:39.9]} 20...
d4 {[%clk 0:02:11.9]} 21. Nd5 {[%clk 0:02:39.7]} 21... Ne8 {[%clk 0:01:45.1]}
22. Rc1 {[%clk 0:02:17.5]} 22... Ne7 {[%clk 0:01:44.2]} 23. b5 {[%clk
0:02:15.9]} 23... c6 {[%clk 0:01:33.8]} 24. bxc6 {[%clk 0:02:13.5]} 24... bxc6
{[%clk 0:01:29]} 25. Nxe7+ {[%clk 0:02:13.6]} 25... Qxe7 {[%clk 0:01:22.2]} 26.
c5 {[%clk 0:02:09.9]} 26... Qc7 {[%clk 0:01:11.2]} 27. Qb6 {[%clk 0:02:09.4]}
27... Rb8 {[%clk 0:01:11.4]} 28. Qxa6 {[%clk 0:02:07.8]} 28... Rb5 {[%clk
0:01:11.3]} 29. Ra1 {[%clk 0:02:05.7]} 29... Qb8 {[%clk 0:00:49.6]} 30. Nd2
{[%clk 0:02:05.6]} 30... Nc7 {[%clk 0:00:45.3]} 31. Qb6 {[%clk 0:02:06]} 31...
Rxb6 {[%clk 0:00:44.1]} 32. cxb6 {[%clk 0:02:04.6]} 32... Na6 {[%clk 0:00:41.9]}
33. Rec1 {[%clk 0:01:57.9]} 33... c5 {[%clk 0:00:40.8]} 34. Rab1 {[%clk
0:01:56.5]} 34... Qb7 {[%clk 0:00:40.2]} 35. Nc4 {[%clk 0:01:54]} 35... f6
{[%clk 0:00:38.1]} 36. Rb5 {[%clk 0:01:52.7]} 36... Rc6 {[%clk 0:00:29.3]} 37.
Rcb1 {[%clk 0:01:52.5]} 37... Kh7 {[%clk 0:00:29.1]} 38. R5b2 {[%clk 0:01:50.7]}
38... Nb4 {[%clk 0:00:23.4]} 39. Rxb4 {[%clk 0:01:50.4]} 39... cxb4 {[%clk
0:00:23.4]} 40. Rxb4 {[%clk 0:01:51.1]} 40... Rc8 {[%clk 0:00:21.1]} 41. Kh2
{[%clk 0:01:49]} 41... Ra8 {[%clk 0:00:21.1]} 42. f3 {[%clk 0:01:45]} 42... Qe7
{[%clk 0:00:18.6]} 43. Rb5 {[%clk 0:01:38.9]} 43... Qd7 {[%clk 0:00:17.7]} 44.
Rc5 {[%clk 0:01:31.4]} 44... Qa4 {[%clk 0:00:08]} 45. b7 {[%clk 0:01:22.2]}
45... Rb8 {[%clk 0:00:06.6]} 46. Nd6 {[%clk 0:01:16.3]} 46... Qa3 {[%clk
0:00:06.8]} 47. Rd5 {[%clk 0:01:08.8]} 47... Qxd3 {[%clk 0:00:05.6]} 48. Rb5
{[%clk 0:01:03.7]} 48... Qd2 {[%clk 0:00:02.8]} 49. a6 {[%clk 0:01:02.8]} 49...
Qf4+ {[%clk 0:00:03.3]} 50. Kg1 {[%clk 0:01:02]} 50... Qc1+ {[%clk 0:00:03.9]}
51. Kh2 {[%clk 0:01:00.6]} 51... Qf4+ {[%clk 0:00:04.2]} 52. Kg1 {[%clk
0:01:01]} 52... Qc1+ {[%clk 0:00:04.4]} 53. Kh2 {[%clk 0:01:01.5]} 53... Qf4+
{[%clk 0:00:04.5]} 1/2-1/2

[Event "*** Titled Tuesday Blitz"]
[Site "Chess.com"]
[Date "2021.02.16"]
[Round "8"]
[White "Witik"]
[Black "DamianoLew95"]
[Result "1-0"]
[WhiteElo "2778"]
[BlackElo "2610"]
[TimeControl "180+1"]
[EndTime "11:29:24 PST"]
[Termination "Witik won on time"]

1. d4 {[%clk 0:03:00.9]} 1... d5 {[%clk 0:02:59.1]} 2. Bf4 {[%clk 0:03:00.7]}
2... c5 {[%clk 0:02:57.8]} 3. e3 {[%clk 0:03:01.1]} 3... Nc6 {[%clk 0:02:57.8]}
4. c3 {[%clk 0:03:01.5]} 4... Nf6 {[%clk 0:02:58]} 5. Nd2 {[%clk 0:03:01.6]}
5... Qb6 {[%clk 0:02:57.3]} 6. Qb3 {[%clk 0:03:01.4]} 6... Bf5 {[%clk
0:02:43.9]} 7. dxc5 {[%clk 0:03:01.3]} 7... Qxb3 {[%clk 0:02:38.9]} 8. axb3
{[%clk 0:03:01.2]} 8... e5 {[%clk 0:02:38.2]} 9. Bg3 {[%clk 0:03:01.8]} 9...
Bxc5 {[%clk 0:02:37.5]} 10. Ngf3 {[%clk 0:03:02.5]} 10... Bd6 {[%clk 0:02:29.8]}
11. b4 {[%clk 0:02:56.5]} 11... Nd7 {[%clk 0:02:27.3]} 12. Be2 {[%clk
0:02:52.6]} 12... f6 {[%clk 0:02:22]} 13. O-O {[%clk 0:02:52.1]} 13... Ke7
{[%clk 0:02:18.2]} 14. Rfd1 {[%clk 0:02:48.3]} 14... Rhd8 {[%clk 0:01:59]} 15.
b5 {[%clk 0:02:47.1]} 15... Ncb8 {[%clk 0:01:52.3]} 16. c4 {[%clk 0:02:47.2]}
16... dxc4 {[%clk 0:01:41.5]} 17. Nxc4 {[%clk 0:02:46.2]} 17... Bc7 {[%clk
0:01:40.4]} 18. Nd4 {[%clk 0:02:32]} 18... Bg6 {[%clk 0:01:20.8]} 19. Bg4 {[%clk
0:02:19.8]} 19... Nb6 {[%clk 0:01:11.8]} 20. Ne6 {[%clk 0:02:11.2]} 20... Rxd1+
{[%clk 0:00:52.4]} 21. Rxd1 {[%clk 0:02:10.9]} 21... Bf7 {[%clk 0:00:25.2]} 22.
Nxc7 {[%clk 0:02:02.2]} 22... Bxc4 {[%clk 0:00:23.1]} 23. f4 {[%clk 0:01:42.1]}
23... e4 {[%clk 0:00:15]} 24. Nxa8 {[%clk 0:01:24.7]} 24... Nxa8 {[%clk
0:00:14.4]} 25. Bc8 {[%clk 0:01:25.1]} 25... Bxb5 {[%clk 0:00:08.4]} 26. Bxb7
{[%clk 0:01:23]} 26... Nb6 {[%clk 0:00:07.8]} 27. Bxe4 {[%clk 0:01:22.7]} 27...
h6 {[%clk 0:00:05]} 28. Bf3 {[%clk 0:01:10.9]} 28... N8d7 {[%clk 0:00:04.9]} 29.
e4 {[%clk 0:01:11.2]} 29... a6 {[%clk 0:00:04.8]} 30. Bf2 {[%clk 0:01:09.6]}
30... Nc4 {[%clk 0:00:04.2]} 31. b3 {[%clk 0:01:09.2]} 31... Na5 {[%clk
0:00:03.4]} 32. b4 {[%clk 0:01:05.6]} 32... Nc4 {[%clk 0:00:03.7]} 33. Be2
{[%clk 0:01:02]} 33... Nd6 {[%clk 0:00:03.1]} 34. Bxb5 {[%clk 0:00:57.8]} 34...
axb5 {[%clk 0:00:04]} 35. e5 {[%clk 0:00:57.2]} 35... fxe5 {[%clk 0:00:03.9]}
36. fxe5 {[%clk 0:00:57.6]} 36... Nxe5 {[%clk 0:00:04.8]} 37. Bc5 {[%clk
0:00:57.4]} 37... Nc4 {[%clk 0:00:05.4]} 38. Bxd6+ {[%clk 0:00:47.8]} 38... Nxd6
{[%clk 0:00:06.3]} 39. Rd5 {[%clk 0:00:47.9]} 39... Ke6 {[%clk 0:00:05.4]} 40.
Rc5 {[%clk 0:00:48]} 40... g6 {[%clk 0:00:05.6]} 41. g3 {[%clk 0:00:45.9]} 41...
h5 {[%clk 0:00:05.3]} 42. Kg2 {[%clk 0:00:46.1]} 1-0

[Event "*** Titled Tuesday Blitz"]
[Site "Chess.com"]
[Date "2021.02.16"]
[Round "8"]
[White "attack2mateU"]
[Black "Fandorine"]
[Result "1-0"]
[WhiteElo "2738"]
[BlackElo "2842"]
[TimeControl "180+1"]
[EndTime "11:29:27 PST"]
[Termination "attack2mateU won by checkmate"]

1. e4 {[%clk 0:03:00.9]} 1... e5 {[%clk 0:02:58.2]} 2. Nf3 {[%clk 0:03:00.7]}
2... Nc6 {[%clk 0:02:57.9]} 3. Bc4 {[%clk 0:03:00]} 3... Nf6 {[%clk 0:02:57.2]}
4. d3 {[%clk 0:02:58.1]} 4... Bc5 {[%clk 0:02:54.8]} 5. c3 {[%clk 0:02:57.3]}
5... d6 {[%clk 0:02:53]} 6. O-O {[%clk 0:02:55.9]} 6... h6 {[%clk 0:02:51.9]} 7.
a4 {[%clk 0:02:55]} 7... a5 {[%clk 0:02:49.7]} 8. Re1 {[%clk 0:02:45.6]} 8...
O-O {[%clk 0:02:48.7]} 9. Nbd2 {[%clk 0:02:42.2]} 9... Be6 {[%clk 0:02:47.4]}
10. Bb5 {[%clk 0:02:38.3]} 10... Ba7 {[%clk 0:02:34.5]} 11. Nf1 {[%clk
0:02:30.4]} 11... Ne7 {[%clk 0:02:33.6]} 12. d4 {[%clk 0:02:29.5]} 12... c6
{[%clk 0:02:30.9]} 13. Bd3 {[%clk 0:02:29.4]} 13... Ng6 {[%clk 0:02:30.4]} 14.
Ng3 {[%clk 0:02:28.6]} 14... Re8 {[%clk 0:02:27.5]} 15. h3 {[%clk 0:02:24.1]}
15... Nh7 {[%clk 0:02:10.9]} 16. Be3 {[%clk 0:02:18.2]} 16... Ng5 {[%clk
0:02:09.5]} 17. Nxg5 {[%clk 0:02:14.3]} 17... hxg5 {[%clk 0:02:10.4]} 18. d5
{[%clk 0:01:42.5]} 18... Bxe3 {[%clk 0:02:03.8]} 19. dxe6 {[%clk 0:01:38.9]}
19... Bxf2+ {[%clk 0:02:03.9]} 20. Kxf2 {[%clk 0:01:38.1]} 20... Qb6+ {[%clk
0:02:04.8]} 21. Re3 {[%clk 0:01:03.8]} 21... fxe6 {[%clk 0:01:29.5]} 22. Qd2
{[%clk 0:01:03.6]} 22... Rf8+ {[%clk 0:01:26.4]} 23. Kg1 {[%clk 0:01:03.8]}
23... Nh4 {[%clk 0:01:19.4]} 24. Kh1 {[%clk 0:00:48.4]} 24... Rf7 {[%clk
0:01:09.6]} 25. Be2 {[%clk 0:00:25.7]} 25... Rf2 {[%clk 0:01:02.2]} 26. Rf1
{[%clk 0:00:25.2]} 26... Rxg2 {[%clk 0:00:50.4]} 27. Qd3 {[%clk 0:00:17.2]}
27... Rd8 {[%clk 0:00:33.1]} 28. Bg4 {[%clk 0:00:17.2]} 28... Qxb2 {[%clk
0:00:26.3]} 29. Re2 {[%clk 0:00:17.4]} 29... Rxe2 {[%clk 0:00:22.3]} 30. Bxe6+
{[%clk 0:00:17.6]} 30... Kh8 {[%clk 0:00:22.8]} 31. Nxe2 {[%clk 0:00:17.7]}
31... g6 {[%clk 0:00:10.5]} 32. Qe3 {[%clk 0:00:16]} 32... Re8 {[%clk
0:00:04.8]} 33. Qxg5 {[%clk 0:00:15.6]} 33... Qxe2 {[%clk 0:00:05.3]} 34. Qh6#
{[%clk 0:00:15.3]} 1-0

[Event "*** Titled Tuesday Blitz"]
[Site "Chess.com"]
[Date "2021.02.16"]
[Round "8"]
[White "OriTaichman"]
[Black "ljuks68"]
[Result "0-1"]
[WhiteElo "2538"]
[BlackElo "2411"]
[TimeControl "180+1"]
[EndTime "11:29:28 PST"]
[Termination "ljuks68 won on time"]

1. e4 {[%clk 0:03:00.9]} 1... e6 {[%clk 0:02:59.7]} 2. d4 {[%clk 0:02:59.7]}
2... d5 {[%clk 0:03:00.2]} 3. Nc3 {[%clk 0:03:00.3]} 3... Bb4 {[%clk 0:02:59.7]}
4. e5 {[%clk 0:03:00]} 4... Ne7 {[%clk 0:02:59.8]} 5. Bd2 {[%clk 0:03:00.1]}
5... b6 {[%clk 0:02:59.5]} 6. Bb5+ {[%clk 0:02:50]} 6... c6 {[%clk 0:02:55.7]}
7. Ba4 {[%clk 0:02:50.3]} 7... O-O {[%clk 0:02:47.9]} 8. Nce2 {[%clk 0:02:50.2]}
8... Bxd2+ {[%clk 0:02:46.7]} 9. Qxd2 {[%clk 0:02:51.1]} 9... c5 {[%clk
0:02:17.3]} 10. c3 {[%clk 0:02:50]} 10... Ba6 {[%clk 0:02:17.1]} 11. f4 {[%clk
0:02:46.4]} 11... f6 {[%clk 0:02:00.3]} 12. Nf3 {[%clk 0:02:36.9]} 12... fxe5
{[%clk 0:01:58.3]} 13. Nxe5 {[%clk 0:02:26.4]} 13... Bxe2 {[%clk 0:01:54.9]} 14.
Kxe2 {[%clk 0:02:21.4]} 14... Nf5 {[%clk 0:01:47.2]} 15. g3 {[%clk 0:02:01.6]}
15... b5 {[%clk 0:01:42.7]} 16. Bc2 {[%clk 0:01:36.8]} 16... cxd4 {[%clk
0:01:41.8]} 17. cxd4 {[%clk 0:01:21.4]} 17... Nd7 {[%clk 0:01:40.1]} 18. Rac1
{[%clk 0:00:49]} 18... Nxe5 {[%clk 0:01:38.1]} 19. fxe5 {[%clk 0:00:44.8]} 19...
Qb6 {[%clk 0:01:34.7]} 20. Bxf5 {[%clk 0:00:41.5]} 20... Rxf5 {[%clk 0:01:34.2]}
21. Rhf1 {[%clk 0:00:39.1]} 21... Rxf1 {[%clk 0:01:01.1]} 22. Kxf1 {[%clk
0:00:30.8]} 22... b4 {[%clk 0:00:55.9]} 23. Rc5 {[%clk 0:00:26.5]} 23... Rf8+
{[%clk 0:00:49.9]} 24. Kg2 {[%clk 0:00:19.9]} 24... Qa6 {[%clk 0:00:49.9]} 25.
Rc1 {[%clk 0:00:09.9]} 25... Qxa2 {[%clk 0:00:46.9]} 26. Qxb4 {[%clk 0:00:09.9]}
26... Qa6 {[%clk 0:00:41.6]} 27. Qd2 {[%clk 0:00:06.3]} 27... Qb5 {[%clk
0:00:38]} 28. b4 {[%clk 0:00:05.3]} 28... Rb8 {[%clk 0:00:34.5]} 29. Rc5 {[%clk
0:00:03.1]} 29... Qb6 {[%clk 0:00:22.5]} 30. b5 {[%clk 0:00:03.4]} 30... h6
{[%clk 0:00:22.1]} 31. Qc3 {[%clk 0:00:02.7]} 31... Qb7 {[%clk 0:00:18.9]} 0-1

[Event "*** Titled Tuesday Blitz"]
[Site "Chess.com"]
[Date "2021.02.16"]
[Round "8"]
[White "Sanyura"]
[Black "Lady_Nika"]
[Result "1-0"]
[WhiteElo "2707"]
[BlackElo "2384"]
[TimeControl "180+1"]
[EndTime "11:29:29 PST"]
[Termination "Sanyura won by checkmate"]

1. e4 {[%clk 0:03:00.9]} 1... e6 {[%clk 0:02:59.3]} 2. d3 {[%clk 0:02:58.9]}
2... d5 {[%clk 0:02:59.2]} 3. Nd2 {[%clk 0:02:59.8]} 3... Nf6 {[%clk 0:02:58.8]}
4. Ngf3 {[%clk 0:02:57.8]} 4... Be7 {[%clk 0:02:58.4]} 5. g3 {[%clk 0:02:58.1]}
5... O-O {[%clk 0:02:58]} 6. Bg2 {[%clk 0:02:58.6]} 6... c5 {[%clk 0:02:58]} 7.
O-O {[%clk 0:02:58.9]} 7... Nc6 {[%clk 0:02:58.4]} 8. exd5 {[%clk 0:02:55.9]}
8... exd5 {[%clk 0:02:58.5]} 9. d4 {[%clk 0:02:56.4]} 9... Bg4 {[%clk
0:02:58.2]} 10. h3 {[%clk 0:02:56]} 10... Bh5 {[%clk 0:02:56.3]} 11. dxc5 {[%clk
0:02:54.4]} 11... Bxc5 {[%clk 0:02:56.1]} 12. Nb3 {[%clk 0:02:55.1]} 12... Bb6
{[%clk 0:02:55.9]} 13. Bg5 {[%clk 0:02:52.6]} 13... d4 {[%clk 0:02:42.5]} 14. g4
{[%clk 0:02:29.3]} 14... Bg6 {[%clk 0:02:42]} 15. Nbd2 {[%clk 0:02:27.7]} 15...
h6 {[%clk 0:02:41.2]} 16. Bh4 {[%clk 0:02:27.9]} 16... Rc8 {[%clk 0:02:38.1]}
17. Rc1 {[%clk 0:02:21.5]} 17... Nb4 {[%clk 0:02:37.8]} 18. Ne5 {[%clk
0:02:19.5]} 18... Bxc2 {[%clk 0:02:34.2]} 19. Qf3 {[%clk 0:02:19.5]} 19... g5
{[%clk 0:02:25.4]} 20. Bg3 {[%clk 0:02:16]} 20... Nxa2 {[%clk 0:02:15.3]} 21.
Ra1 {[%clk 0:01:55.5]} 21... Nb4 {[%clk 0:02:13.3]} 22. Qxb7 {[%clk 0:01:55.2]}
22... Rc7 {[%clk 0:02:12]} 23. Qf3 {[%clk 0:01:54.5]} 23... Bh7 {[%clk
0:02:01.7]} 24. h4 {[%clk 0:01:52.5]} 24... Nc2 {[%clk 0:01:58.5]} 25. Rac1
{[%clk 0:01:42.6]} 25... d3 {[%clk 0:01:58.4]} 26. Nc6 {[%clk 0:01:39.4]} 26...
Rxc6 {[%clk 0:01:53.3]} 27. Qxc6 {[%clk 0:01:40.3]} 27... Nd4 {[%clk 0:01:53]}
28. Qb7 {[%clk 0:01:21.6]} 28... Ne2+ {[%clk 0:01:52.7]} 29. Kh1 {[%clk
0:01:21.3]} 29... Nxc1 {[%clk 0:01:52.5]} 30. Rxc1 {[%clk 0:01:22]} 30... Nxg4
{[%clk 0:01:49.7]} 31. Qf3 {[%clk 0:01:17]} 31... Nf6 {[%clk 0:01:41.5]} 32.
hxg5 {[%clk 0:01:00.6]} 32... hxg5 {[%clk 0:01:41.4]} 33. Rc6 {[%clk 0:00:59.1]}
33... Bd4 {[%clk 0:01:34.9]} 34. Rd6 {[%clk 0:00:54.9]} 34... Qa5 {[%clk
0:01:32.6]} 35. Rxd4 {[%clk 0:00:48.9]} 35... Qxd2 {[%clk 0:01:31.6]} 36. Qxf6
{[%clk 0:00:48.7]} 36... Qd1+ {[%clk 0:01:13.9]} 37. Kh2 {[%clk 0:00:46.4]}
37... Qh5+ {[%clk 0:01:13.8]} 38. Bh3 {[%clk 0:00:46.4]} 38... Bg6 {[%clk
0:01:02.6]} 39. Be5 {[%clk 0:00:37.4]} 39... Qh7 {[%clk 0:01:01.6]} 40. Rd8
{[%clk 0:00:37.1]} 40... Qh6 {[%clk 0:00:08.4]} 41. Rxf8+ {[%clk 0:00:36.4]}
41... Qxf8 {[%clk 0:00:08.1]} 42. Qh8# {[%clk 0:00:36.3]} 1-0

[Event "*** Titled Tuesday Blitz"]
[Site "Chess.com"]
[Date "2021.02.16"]
[Round "8"]
[White "mikolka1985"]
[Black "TigrVShlyape"]
[Result "0-1"]
[WhiteElo "2619"]
[BlackElo "2891"]
[TimeControl "180+1"]
[EndTime "11:29:32 PST"]
[Termination "TigrVShlyape won on time"]

1. d4 {[%clk 0:03:00.9]} 1... Nf6 {[%clk 0:02:48.8]} 2. c4 {[%clk 0:03:00.1]}
2... g6 {[%clk 0:02:48.4]} 3. Nc3 {[%clk 0:02:59.5]} 3... Bg7 {[%clk 0:02:49]}
4. e4 {[%clk 0:02:59]} 4... d6 {[%clk 0:02:49.3]} 5. h3 {[%clk 0:02:59.3]} 5...
Nc6 {[%clk 0:02:45.7]} 6. Nf3 {[%clk 0:02:51.4]} 6... e5 {[%clk 0:02:44]} 7. d5
{[%clk 0:02:47.9]} 7... Ne7 {[%clk 0:02:41.9]} 8. g4 {[%clk 0:02:46.1]} 8... h5
{[%clk 0:02:38.3]} 9. g5 {[%clk 0:02:44.3]} 9... Nh7 {[%clk 0:02:37.4]} 10. Be3
{[%clk 0:02:41.1]} 10... c5 {[%clk 0:02:34.1]} 11. a3 {[%clk 0:02:38.5]} 11...
O-O {[%clk 0:02:32.8]} 12. Rg1 {[%clk 0:02:34.3]} 12... Kh8 {[%clk 0:02:31.9]}
13. Rb1 {[%clk 0:02:30.9]} 13... Bd7 {[%clk 0:02:29.9]} 14. Qd2 {[%clk
0:02:29.1]} 14... a6 {[%clk 0:02:26.6]} 15. b4 {[%clk 0:02:27.5]} 15... b6
{[%clk 0:02:25.9]} 16. Qb2 {[%clk 0:02:08.7]} 16... Rb8 {[%clk 0:02:19]} 17. Kd2
{[%clk 0:01:50]} 17... f6 {[%clk 0:02:13.7]} 18. gxf6 {[%clk 0:01:47.1]} 18...
Bxf6 {[%clk 0:02:10]} 19. bxc5 {[%clk 0:01:28.4]} 19... bxc5 {[%clk 0:02:08.4]}
20. Qxb8 {[%clk 0:01:27.7]} 20... Qxb8 {[%clk 0:02:08.3]} 21. Rxb8 {[%clk
0:01:27.3]} 21... Rxb8 {[%clk 0:02:08.4]} 22. Kc2 {[%clk 0:01:26.8]} 22... Kg7
{[%clk 0:02:05.4]} 23. Ne1 {[%clk 0:01:21.4]} 23... Nc8 {[%clk 0:01:50.9]} 24.
f4 {[%clk 0:01:15.9]} 24... exf4 {[%clk 0:01:39.9]} 25. Bxf4 {[%clk 0:01:15.5]}
25... g5 {[%clk 0:01:38.4]} 26. Be3 {[%clk 0:01:01.6]} 26... Ne7 {[%clk
0:01:34.4]} 27. Nf3 {[%clk 0:00:58.6]} 27... Ng6 {[%clk 0:01:24.1]} 28. Nxg5
{[%clk 0:00:56.1]} 28... Nxg5 {[%clk 0:01:23.6]} 29. Bxg5 {[%clk 0:00:55.5]}
29... Bxg5 {[%clk 0:01:23.6]} 30. Rxg5 {[%clk 0:00:54.9]} 30... Kh6 {[%clk
0:01:23.5]} 31. Rg1 {[%clk 0:00:47.2]} 31... Ne5 {[%clk 0:01:22.5]} 32. Be2
{[%clk 0:00:38.9]} 32... Bxh3 {[%clk 0:01:20.2]} 33. Nd1 {[%clk 0:00:37]} 33...
Bd7 {[%clk 0:01:17.1]} 34. Rh1 {[%clk 0:00:26]} 34... Bg4 {[%clk 0:01:12.5]} 35.
Bxg4 {[%clk 0:00:22.6]} 35... Nxg4 {[%clk 0:01:12.5]} 36. Nc3 {[%clk 0:00:20.2]}
36... Kg6 {[%clk 0:01:08.9]} 37. Ne2 {[%clk 0:00:18.7]} 37... Kg5 {[%clk
0:00:48.7]} 38. Kc3 {[%clk 0:00:14.3]} 38... h4 {[%clk 0:00:48]} 39. Rf1 {[%clk
0:00:14]} 39... h3 {[%clk 0:00:44.3]} 40. Nf4 {[%clk 0:00:13.4]} 40... h2 {[%clk
0:00:44]} 41. Ne6+ {[%clk 0:00:11.6]} 41... Kh4 {[%clk 0:00:44.2]} 42. Nf4
{[%clk 0:00:11.2]} 42... Kg3 {[%clk 0:00:43.9]} 43. Nh5+ {[%clk 0:00:10.1]}
43... Kg2 {[%clk 0:00:43.7]} 0-1